{"text_format":"1","workbook":"xlsx","n_sheets":25,"sheets":["Val","Beräkningar","Sid 1","Analysinstrument","Ventilation 1","Ventilation 2","Ventilation 3","Ventilation 4","Ventilation 5","Ventilation 6","Ventilation 7","Ventilation 8","Ventilation 9","Ventilation 10","Ventilation 11","Ventilation 12","Utsläpp år 1","Utsläpp år 2","Utsläpp h 1","Utsläpp h 2","Utsläpp h 3","Utsläpp h 4","Utsläpp h 5","Bilaga","EgMet Protokoll"],"not_rendered":{"charts":0,"images":2,"macros":1,"external_links":0,"defined_names":2,"comments":3,"pivot_tables":0},"unopened":[],"bounds":{"document_bytes":16777216,"sheet_cells":100000,"rows_first":2000,"rows_last":500,"rows_between":2000,"halvings":0,"cell_chars":16384,"cell_head_chars":4096},"cells_cut":0,"cells_raw":0,"read":"whole","date_system":"1900"}

{"sheet":"Val","index":0,"n_rows":31,"n_cols":7,"rows_kept":31,"cut":false,"hidden":false,"merged":[]}
[]
[null,"Produktionsanläggning, Samrötning"]
[]
[null,"De utsläppskällor som har uppmätts ges en identifikation i listan:"]
[]
[null,"Utsläppskällor","Identifikation","Array","HBK","Är val gjort?","Array"]
[null,"Analysinstrument","Fast installerade analysinstrument",{"$f":"IF(C7<>\"\",1,0)","v":1},"Ja",{"$f":"IF(C7<>\"\",IF(OR(E7=\"Ja\",E7=\"Nej\"),\"ok\",\"!\"),\"\")","v":"ok"},{"$f":"IF(E7=\"Ja\",1,0)","v":1}]
[null,"Ventilation 1",null,{"$f":"IF(C8<>\"\",1,0)","v":0},null,{"$f":"IF(C8<>\"\",IF(OR(E8=\"Ja\",E8=\"Nej\"),\"ok\",\"!\"),\"\")","v":""},{"$f":"IF(E8=\"Ja\",1,0)","v":0}]
[null,"Ventilation 2",null,{"$f":"IF(C9<>\"\",1,0)","v":0},null,{"$f":"IF(C9<>\"\",IF(OR(E9=\"Ja\",E9=\"Nej\"),\"ok\",\"!\"),\"\")","v":""},0]
[null,"Ventilation 3",null,0,null,"",0]
[null,"Ventilation 4",null,0,null,"",0]
[null,"Ventilation 5",null,0,null,"",0]
[null,"Ventilation 6",null,0,null,"",0]
[null,"Ventilation 7",null,0,null,"",0]
[null,"Ventilation 8",null,0,null,"",0]
[null,"Ventilation 9",null,0,null,"",0]
[null,"Ventilation 10",null,0,null,"",0]
[null,"Ventilation 11",null,0,null,"",0]
[null,"Ventilation 12",null,0,null,"",0]
[null,"Utsläpp (Nm3/år) 1",null,0,null,"",0]
[null,"Utsläpp (Nm3/år) 2",null,0,null,"",0]
[null,"Utsläpp (Nm3/h) 1",null,0,null,"",0]
[null,"Utsläpp (Nm3/h) 2",null,0,null,"",0]
[null,"Utsläpp (Nm3/h) 3",null,0,null,"",0]
[null,"Utsläpp (Nm3/h) 4",null,0,null,"",0]
[null,"Utsläpp (Nm3/h) 5",null,0,null,"",0]
[]
[]
[]
[]
[null,"Utskrift"]

{"sheet":"Beräkningar","index":1,"n_rows":406,"n_cols":9,"rows_kept":406,"cut":false,"hidden":false,"merged":[]}
["indata och konstanter",null,null,null,"PRODUKTIONSANLÄGGNING",null,null,null,"vers. 2.1"]
["beräknade data (kan vid behov skrivas över)"]
["slutresultat"]
[]
["PRODUKTIONSDATA",null,null,null,"RÅGAS"]
["Q (gasflöde)","Nm3/h"]
["CH4 (metanhalt)","vol-%"]
["Momentant metanflöde","Nm3 CH4/h",null,null,{"$f":"E6*E7/100","v":0}]
["Årsproduktion gas","Nm3/år"]
["Metanhalt årsmedel","vol-%"]
["Totalt genomflöde","Nm3 CH4/år",null,null,{"$f":"E9*E10/100","v":0}]
["Drifttimmar per år","h/år"]
[]
["FÖRLUSTER",null,null,null,null,null,"HBK"]
["Momentan förlust","Nm3 CH4/h",null,null,{"$f":"C25*Val!D7+C49*Val!D8+C73*Val!D9+C97*Val!D10+C121*Val!D11+C145*Val!D12+C169*Val!D13+C193*Val!D14+C217*Val!D15+C241*Val!D16+C265*Val!D17+C289*Val!D18+C313*Val!D19+E325*Val!D20+E337*Val!D21+C349*Val!D22+C361*Val!D23+C373*Val!D24+C385*Val!D25+C397*Val!D26","v":0},null,{"$f":"C25*Val!G7+C49*Val!G8+C73*Val!G9+C97*Val!G10+C121*Val!G11+C145*Val!G12+C169*Val!G13+C193*Val!G14+C217*Val!G15+C241*Val!G16+C265*Val!G17+C289*Val!G18+C313*Val!G19+E325*Val!G20+E337*Val!G21+C349*Val!G22+C361*Val!G23+C373*Val!G24+C385*Val!G25+C397*Val!G26","v":0},null,"Uppdatera formeln i E15 om fler utsläppspunkter läggs till manuellt"]
["Momentan förlust","%",null,null,{"$f":"E15/$E$8*100","v":{"$error":"#DIV/0!"}},null,{"$f":"G15/$E$8*100","v":{"$error":"#DIV/0!"}}]
["Årlig förlust","Nm3 CH4/år",null,null,{"$f":"C29*Val!D7+E53*Val!D8+E77*Val!D9+E101*Val!D10+E125*Val!D11+E149*Val!D12+E173*Val!D13+E197*Val!D14+E221*Val!D15+E245*Val!D16+E269*Val!D17+E293*Val!D18+E317*Val!D19+E329*Val!D20+E341*Val!D21+E353*Val!D22+E365*Val!D23+E377*Val!D24+E389*Val!D25+E401*Val!D26","v":0},null,{"$f":"C29*Val!G7+E53*Val!G8+E77*Val!G9+E101*Val!G10+E125*Val!G11+E149*Val!G12+E173*Val!G13+E197*Val!G14+E221*Val!G15+E245*Val!G16+E269*Val!G17+E293*Val!G18+E317*Val!G19+E329*Val!G20+E341*Val!G21+E353*Val!G22+E365*Val!G23+E377*Val!G24+E389*Val!G25+E401*Val!G26","v":0},null,"Uppdatera formeln i E17 om fler utsläppspunkter läggs till manuellt"]
["Årlig förlust","%",null,null,{"$f":"E17/$E$11*100","v":{"$error":"#DIV/0!"}},null,{"$f":"G17/$E$11*100","v":{"$error":"#DIV/0!"}}]
[]
["ANALYSINSTRUMENT",{"$f":"Val!C7","v":"Fast installerade analysinstrument"}]
["INDATA"]
["Qutsläpp Rågas","lpm (l/min)"]
["RESULTAT"]
["Qutsläpp","l/h",{"$f":"C22*60","v":0}]
["Momentant utsläpp","Nm3 CH4/h",{"$f":"$E$7/100*C22*60/1000","v":0}]
["Momentant metanflöde","Nm3 CH4/h",null,null,{"$f":"$E$8","v":0}]
["Momentan förlust","%",null,null,{"$f":"100*C25/$E$8","v":{"$error":"#DIV/0!"}}]
["ÅRSVÄRDEN"]
["Årligt utsläpp","Nm3 CH4/år",{"$f":"($E$10/100*C22*60/1000)*$E$12","v":0}]
["Årligt metanflöde","Nm3 CH4/år",null,null,{"$f":"$E$11","v":0}]
["Årlig förlust","%",null,null,{"$f":"100*C29/E30","v":{"$error":"#DIV/0!"}}]
[]
["VENTILATION 1",{"$f":"Val!C8","v":0}]
["INDATA"]
["CH4(utsläpp)","ppm"]
["Tutsläpp","ºC"]
["Differenstryck, pd","Pa"]
["Rör diameter","cm"]
["KONSTANTER"]
["putsläpp","kPa",101.3]
["Luft densitet","kg/Nm3",1.29]
["RESULTAT"]
["Luft densitet","kg/m3",{"$f":"C41*C40/101.3*273.15/(273.15+C36)","v":1.29}]
["Rör area","m2",{"$f":"(C38/100)^2*0.25*PI()","v":0}]
["Gashastighet","m/s",9.4]
["Qutsläpp","l/s",{"$f":"C44*C45*1000","v":0}]
["Qutsläpp","m3/h",{"$f":"C46/1000*60*60","v":0}]
["Qutsläpp","Nm3/h",{"$f":"C47*C40/101.3*273.15/(273.15+C36)","v":0}]
["Momentant utsläpp","Nm3 CH4/h",{"$f":"C48*C35/1000000","v":0}]
["Momentant metanflöde","Nm3 CH4/h",null,null,{"$f":"$E$8","v":0}]
["Momentan förlust","%",null,null,{"$f":"100*C49/$E$8","v":{"$error":"#DIV/0!"}}]
["ÅRSVÄRDEN","Skalning:"]
["Årligt utsläpp","Nm3 CH4/år",null,null,{"$f":"IF(C52=\"p\",E51/100*E54,IF(C52=\"h\",C49*$E$12,0))","v":0}]
["Årligt metanflöde","Nm3 CH4/år",null,null,{"$f":"$E$11","v":0}]
["Årlig förlust","%",null,null,{"$f":"100*E53/E54","v":{"$error":"#DIV/0!"}}]
[]
["VENTILATION 2",{"$f":"Val!C9","v":0}]
["INDATA"]
["CH4(utsläpp)","ppm",0]
["Tutsläpp","ºC"]
["Differenstryck, pd","Pa"]
["Rör diameter","cm"]
["KONSTANTER"]
["putsläpp","kPa",101.3]
["Luft densitet","kg/Nm3",1.29]
["RESULTAT"]
["Luft densitet","kg/m3",{"$f":"C65*C64/101.3*273.15/(273.15+C60)","v":1.29}]
["Rör area","m2",{"$f":"(C62/100)^2*0.25*PI()","v":0}]
["Gashastighet","m/s",0.1]
["Qutsläpp","l/s",{"$f":"C68*C69*1000","v":0}]
["Qutsläpp","m3/h",{"$f":"C70/1000*60*60","v":0}]
["Qutsläpp","Nm3/h",{"$f":"C71*C64/101.3*273.15/(273.15+C60)","v":0}]
["Momentant utsläpp","Nm3 CH4/h",{"$f":"C72*C59/1000000","v":0}]
["Momentant metanflöde","Nm3 CH4/h",null,null,{"$f":"$E$8","v":0}]
["Momentan förlust","%",null,null,{"$f":"100*C73/$E$8","v":{"$error":"#DIV/0!"}}]
["ÅRSVÄRDEN","Skalning:"]
["Årligt utsläpp","Nm3 CH4/år",null,null,{"$f":"IF(C76=\"p\",E75/100*E78,IF(C76=\"h\",C73*$E$12,0))","v":0}]
["Årligt metanflöde","Nm3 CH4/år",null,null,{"$f":"$E$11","v":0}]
["Årlig förlust","%",null,null,{"$f":"100*E77/E78","v":{"$error":"#DIV/0!"}}]
[]
["VENTILATION 3",{"$f":"Val!C10","v":0}]
["INDATA"]
["CH4(utsläpp)","ppm"]
["Tutsläpp","ºC"]
["Differenstryck, pd","Pa"]
["Rör diameter","cm"]
["KONSTANTER"]
["putsläpp","kPa",101.3]
["Luft densitet","kg/Nm3",1.29]
["RESULTAT"]
["Luft densitet","kg/m3",{"$f":"C89*C88/101.3*273.15/(273.15+C84)","v":1.29}]
["Rör area","m2",{"$f":"(C86/100)^2*0.25*PI()","v":0}]
["Gashastighet","m/s",0.1]
["Qutsläpp","l/s",{"$f":"C92*C93*1000","v":0}]
["Qutsläpp","m3/h",{"$f":"C94/1000*60*60","v":0}]
["Qutsläpp","Nm3/h",{"$f":"C95*C88/101.3*273.15/(273.15+C84)","v":0}]
["Momentant utsläpp","Nm3 CH4/h",{"$f":"C96*C83/1000000","v":0}]
["Momentant metanflöde","Nm3 CH4/h",null,null,{"$f":"$E$8","v":0}]
["Momentan förlust","%",null,null,{"$f":"100*C97/$E$8","v":{"$error":"#DIV/0!"}}]
["ÅRSVÄRDEN","Skalning:"]
["Årligt utsläpp","Nm3 CH4/år",null,null,{"$f":"IF(C100=\"p\",E99/100*E102,IF(C100=\"h\",C97*$E$12,0))","v":0}]
["Årligt metanflöde","Nm3 CH4/år",null,null,{"$f":"$E$11","v":0}]
["Årlig förlust","%",null,null,{"$f":"100*E101/E102","v":{"$error":"#DIV/0!"}}]
[]
["VENTILATION 4",{"$f":"Val!C11","v":0}]
["INDATA"]
["CH4(utsläpp)","ppm"]
["Tutsläpp","ºC"]
["Differenstryck, pd","Pa"]
["Rör diameter","cm"]
["KONSTANTER"]
["putsläpp","kPa",101.3]
["Luft densitet","kg/Nm3",1.29]
["RESULTAT"]
["Luft densitet","kg/m3",{"$f":"C113*C112/101.3*273.15/(273.15+C108)","v":1.29}]
["Rör area","m2",{"$f":"(C110/100)^2*0.25*PI()","v":0}]
["Gashastighet","m/s",3]
["Qutsläpp","l/s",{"$f":"C116*C117*1000","v":0}]
["Qutsläpp","m3/h",{"$f":"C118/1000*60*60","v":0}]
["Qutsläpp","Nm3/h",{"$f":"C119*C112/101.3*273.15/(273.15+C108)","v":0}]
["Momentant utsläpp","Nm3 CH4/h",{"$f":"C120*C107/1000000","v":0}]
["Momentant metanflöde","Nm3 CH4/h",null,null,{"$f":"$E$8","v":0}]
["Momentan förlust","%",null,null,{"$f":"100*C121/$E$8","v":{"$error":"#DIV/0!"}}]
["ÅRSVÄRDEN","Skalning:"]
["Årligt utsläpp","Nm3 CH4/år",null,null,{"$f":"IF(C124=\"p\",E123/100*E126,IF(C124=\"h\",C121*$E$12,0))","v":0}]
["Årligt metanflöde","Nm3 CH4/år",null,null,{"$f":"$E$11","v":0}]
["Årlig förlust","%",null,null,{"$f":"100*E125/E126","v":{"$error":"#DIV/0!"}}]
[]
["VENTILATION 5",{"$f":"Val!C12","v":0}]
["INDATA"]
["CH4(utsläpp)","ppm"]
["Tutsläpp","ºC"]
["Differenstryck, pd","Pa"]
["Rör diameter","cm"]
["KONSTANTER"]
["putsläpp","kPa",101.3]
["Luft densitet","kg/Nm3",1.29]
["RESULTAT"]
["Luft densitet","kg/m3",{"$f":"C137*C136/101.3*273.15/(273.15+C132)","v":1.29}]
["Rör area","m2",{"$f":"(C134/100)^2*0.25*PI()","v":0}]
["Gashastighet","m/s",0.1]
["Qutsläpp","l/s",{"$f":"C140*C141*1000","v":0}]
["Qutsläpp","m3/h",{"$f":"C142/1000*60*60","v":0}]
["Qutsläpp","Nm3/h",{"$f":"C143*C136/101.3*273.15/(273.15+C132)","v":0}]
["Momentant utsläpp","Nm3 CH4/h",{"$f":"C144*C131/1000000","v":0}]
["Momentant metanflöde","Nm3 CH4/h",null,null,{"$f":"$E$8","v":0}]
["Momentan förlust","%",null,null,{"$f":"100*C145/$E$8","v":{"$error":"#DIV/0!"}}]
["ÅRSVÄRDEN","Skalning:"]
["Årligt utsläpp","Nm3 CH4/år",null,null,{"$f":"IF(C148=\"p\",E147/100*E150,IF(C148=\"h\",C145*$E$12,0))","v":0}]
["Årligt metanflöde","Nm3 CH4/år",null,null,{"$f":"$E$11","v":0}]
["Årlig förlust","%",null,null,{"$f":"100*E149/E150","v":{"$error":"#DIV/0!"}}]
[]
["VENTILATION 6",{"$f":"Val!C13","v":0}]
["INDATA"]
["CH4(utsläpp)","ppm"]
["Tutsläpp","ºC"]
["Differenstryck, pd","Pa"]
["Rör diameter","cm"]
["KONSTANTER"]
["putsläpp","kPa",101.3]
["Luft densitet","kg/Nm3",1.29]
["RESULTAT"]
["Luft densitet","kg/m3",{"$f":"C161*C160/101.3*273.15/(273.15+C156)","v":1.29}]
["Rör area","m2",{"$f":"(C158/100)^2*0.25*PI()","v":0}]
["Gashastighet","m/s",{"$f":"SQRT(2*C157/C163)","v":0}]
["Qutsläpp","l/s",{"$f":"C164*C165*1000","v":0}]
["Qutsläpp","m3/h",{"$f":"C166/1000*60*60","v":0}]
["Qutsläpp","Nm3/h",{"$f":"C167*C160/101.3*273.15/(273.15+C156)","v":0}]
["Momentant utsläpp","Nm3 CH4/h",{"$f":"C168*C155/1000000","v":0}]
["Momentant metanflöde","Nm3 CH4/h",null,null,{"$f":"$E$8","v":0}]
["Momentan förlust","%",null,null,{"$f":"100*C169/$E$8","v":{"$error":"#DIV/0!"}}]
["ÅRSVÄRDEN","Skalning:"]
["Årligt utsläpp","Nm3 CH4/år",null,null,{"$f":"IF(C172=\"p\",E171/100*E174,IF(C172=\"h\",C169*$E$12,0))","v":0}]
["Årligt metanflöde","Nm3 CH4/år",null,null,{"$f":"$E$11","v":0}]
["Årlig förlust","%",null,null,{"$f":"100*E173/E174","v":{"$error":"#DIV/0!"}}]
[]
["VENTILATION 7",{"$f":"Val!C14","v":0}]
["INDATA"]
["CH4(utsläpp)","ppm"]
["Tutsläpp","ºC"]
["Differenstryck, pd","Pa"]
["Rör diameter","cm"]
["KONSTANTER"]
["putsläpp","kPa",101.3]
["Luft densitet","kg/Nm3",1.29]
["RESULTAT"]
["Luft densitet","kg/m3",{"$f":"C185*C184/101.3*273.15/(273.15+C180)","v":1.29}]
["Rör area","m2",{"$f":"(C182/100)^2*0.25*PI()","v":0}]
["Gashastighet","m/s",{"$f":"SQRT(2*C181/C187)","v":0}]
["Qutsläpp","l/s",{"$f":"C188*C189*1000","v":0}]
["Qutsläpp","m3/h",{"$f":"C190/1000*60*60","v":0}]
["Qutsläpp","Nm3/h",{"$f":"C191*C184/101.3*273.15/(273.15+C180)","v":0}]
["Momentant utsläpp","Nm3 CH4/h",{"$f":"C192*C179/1000000","v":0}]
["Momentant metanflöde","Nm3 CH4/h",null,null,{"$f":"$E$8","v":0}]
["Momentan förlust","%",null,null,{"$f":"100*C193/$E$8","v":{"$error":"#DIV/0!"}}]
["ÅRSVÄRDEN","Skalning:"]
["Årligt utsläpp","Nm3 CH4/år",null,null,{"$f":"IF(C196=\"p\",E195/100*E198,IF(C196=\"h\",C193*$E$12,0))","v":0}]
["Årligt metanflöde","Nm3 CH4/år",null,null,{"$f":"$E$11","v":0}]
["Årlig förlust","%",null,null,{"$f":"100*E197/E198","v":{"$error":"#DIV/0!"}}]
[]
["VENTILATION 8",{"$f":"Val!C15","v":0}]
["INDATA"]
["CH4(utsläpp)","ppm"]
["Tutsläpp","ºC"]
["Differenstryck, pd","Pa"]
["Rör diameter","cm"]
["KONSTANTER"]
["putsläpp","kPa",101.3]
["Luft densitet","kg/Nm3",1.29]
["RESULTAT"]
["Luft densitet","kg/m3",{"$f":"C209*C208/101.3*273.15/(273.15+C204)","v":1.29}]
["Rör area","m2",{"$f":"(C206/100)^2*0.25*PI()","v":0}]
["Gashastighet","m/s",{"$f":"SQRT(2*C205/C211)","v":0}]
["Qutsläpp","l/s",{"$f":"C212*C213*1000","v":0}]
["Qutsläpp","m3/h",{"$f":"C214/1000*60*60","v":0}]
["Qutsläpp","Nm3/h",{"$f":"C215*C208/101.3*273.15/(273.15+C204)","v":0}]
["Momentant utsläpp","Nm3 CH4/h",{"$f":"C216*C203/1000000","v":0}]
["Momentant metanflöde","Nm3 CH4/h",null,null,{"$f":"$E$8","v":0}]
["Momentan förlust","%",null,null,{"$f":"100*C217/$E$8","v":{"$error":"#DIV/0!"}}]
["ÅRSVÄRDEN","Skalning:"]
["Årligt utsläpp","Nm3 CH4/år",null,null,{"$f":"IF(C220=\"p\",E219/100*E222,IF(C220=\"h\",C217*$E$12,0))","v":0}]
["Årligt metanflöde","Nm3 CH4/år",null,null,{"$f":"$E$11","v":0}]
["Årlig förlust","%",null,null,{"$f":"100*E221/E222","v":{"$error":"#DIV/0!"}}]
[]
["VENTILATION 9",{"$f":"Val!C16","v":0}]
["INDATA"]
["CH4(utsläpp)","ppm"]
["Tutsläpp","ºC"]
["Differenstryck, pd","Pa"]
["Rör diameter","cm"]
["KONSTANTER"]
["putsläpp","kPa",101.3]
["Luft densitet","kg/Nm3",1.29]
["RESULTAT"]
["Luft densitet","kg/m3",{"$f":"C233*C232/101.3*273.15/(273.15+C228)","v":1.29}]
["Rör area","m2",{"$f":"(C230/100)^2*0.25*PI()","v":0}]
["Gashastighet","m/s",{"$f":"SQRT(2*C229/C235)","v":0}]
["Qutsläpp","l/s",{"$f":"C236*C237*1000","v":0}]
["Qutsläpp","m3/h",{"$f":"C238/1000*60*60","v":0}]
["Qutsläpp","Nm3/h",{"$f":"C239*C232/101.3*273.15/(273.15+C228)","v":0}]
["Momentant utsläpp","Nm3 CH4/h",{"$f":"C240*C227/1000000","v":0}]
["Momentant metanflöde","Nm3 CH4/h",null,null,{"$f":"$E$8","v":0}]
["Momentan förlust","%",null,null,{"$f":"100*C241/$E$8","v":{"$error":"#DIV/0!"}}]
["ÅRSVÄRDEN","Skalning:"]
["Årligt utsläpp","Nm3 CH4/år",null,null,{"$f":"IF(C244=\"p\",E243/100*E246,IF(C244=\"h\",C241*$E$12,0))","v":0}]
["Årligt metanflöde","Nm3 CH4/år",null,null,{"$f":"$E$11","v":0}]
["Årlig förlust","%",null,null,{"$f":"100*E245/E246","v":{"$error":"#DIV/0!"}}]
[]
["VENTILATION 10",{"$f":"Val!C17","v":0}]
["INDATA"]
["CH4(utsläpp)","ppm"]
["Tutsläpp","ºC"]
["Differenstryck, pd","Pa"]
["Rör diameter","cm"]
["KONSTANTER"]
["putsläpp","kPa",101.3]
["Luft densitet","kg/Nm3",1.29]
["RESULTAT"]
["Luft densitet","kg/m3",{"$f":"C257*C256/101.3*273.15/(273.15+C252)","v":1.29}]
["Rör area","m2",{"$f":"(C254/100)^2*0.25*PI()","v":0}]
["Gashastighet","m/s",{"$f":"SQRT(2*C253/C259)","v":0}]
["Qutsläpp","l/s",{"$f":"C260*C261*1000","v":0}]
["Qutsläpp","m3/h",{"$f":"C262/1000*60*60","v":0}]
["Qutsläpp","Nm3/h",{"$f":"C263*C256/101.3*273.15/(273.15+C252)","v":0}]
["Momentant utsläpp","Nm3 CH4/h",{"$f":"C264*C251/1000000","v":0}]
["Momentant metanflöde","Nm3 CH4/h",null,null,{"$f":"$E$8","v":0}]
["Momentan förlust","%",null,null,{"$f":"100*C265/$E$8","v":{"$error":"#DIV/0!"}}]
["ÅRSVÄRDEN","Skalning:"]
["Årligt utsläpp","Nm3 CH4/år",null,null,{"$f":"IF(C268=\"p\",E267/100*E270,IF(C268=\"h\",C265*$E$12,0))","v":0}]
["Årligt metanflöde","Nm3 CH4/år",null,null,{"$f":"$E$11","v":0}]
["Årlig förlust","%",null,null,{"$f":"100*E269/E270","v":{"$error":"#DIV/0!"}}]
[]
["VENTILATION 11",{"$f":"Val!C18","v":0}]
["INDATA"]
["CH4(utsläpp)","ppm"]
["Tutsläpp","ºC"]
["Differenstryck, pd","Pa"]
["Rör diameter","cm"]
["KONSTANTER"]
["putsläpp","kPa",101.3]
["Luft densitet","kg/Nm3",1.29]
["RESULTAT"]
["Luft densitet","kg/m3",{"$f":"C281*C280/101.3*273.15/(273.15+C276)","v":1.29}]
["Rör area","m2",{"$f":"(C278/100)^2*0.25*PI()","v":0}]
["Gashastighet","m/s",{"$f":"SQRT(2*C277/C283)","v":0}]
["Qutsläpp","l/s",{"$f":"C284*C285*1000","v":0}]
["Qutsläpp","m3/h",{"$f":"C286/1000*60*60","v":0}]
["Qutsläpp","Nm3/h",{"$f":"C287*C280/101.3*273.15/(273.15+C276)","v":0}]
["Momentant utsläpp","Nm3 CH4/h",{"$f":"C288*C275/1000000","v":0}]
["Momentant metanflöde","Nm3 CH4/h",null,null,{"$f":"$E$8","v":0}]
["Momentan förlust","%",null,null,{"$f":"100*C289/$E$8","v":{"$error":"#DIV/0!"}}]
["ÅRSVÄRDEN","Skalning:"]
["Årligt utsläpp","Nm3 CH4/år",null,null,{"$f":"IF(C292=\"p\",E291/100*E294,IF(C292=\"h\",C289*$E$12,0))","v":0}]
["Årligt metanflöde","Nm3 CH4/år",null,null,{"$f":"$E$11","v":0}]
["Årlig förlust","%",null,null,{"$f":"100*E293/E294","v":{"$error":"#DIV/0!"}}]
[]
["VENTILATION 12",{"$f":"Val!C19","v":0}]
["INDATA"]
["CH4(utsläpp)","ppm"]
["Tutsläpp","ºC"]
["Differenstryck, pd","Pa"]
["Rör diameter","cm"]
["KONSTANTER"]
["putsläpp","kPa",101.3]
["Luft densitet","kg/Nm3",1.29]
["RESULTAT"]
["Luft densitet","kg/m3",{"$f":"C305*C304/101.3*273.15/(273.15+C300)","v":1.29}]
["Rör area","m2",{"$f":"(C302/100)^2*0.25*PI()","v":0}]
["Gashastighet","m/s",{"$f":"SQRT(2*C301/C307)","v":0}]
["Qutsläpp","l/s",{"$f":"C308*C309*1000","v":0}]
["Qutsläpp","m3/h",{"$f":"C310/1000*60*60","v":0}]
["Qutsläpp","Nm3/h",{"$f":"C311*C304/101.3*273.15/(273.15+C300)","v":0}]
["Momentant utsläpp","Nm3 CH4/h",{"$f":"C312*C299/1000000","v":0}]
["Momentant metanflöde","Nm3 CH4/h",null,null,{"$f":"$E$8","v":0}]
["Momentan förlust","%",null,null,{"$f":"100*C313/$E$8","v":{"$error":"#DIV/0!"}}]
["ÅRSVÄRDEN","Skalning:"]
["Årligt utsläpp","Nm3 CH4/år",null,null,{"$f":"IF(C316=\"p\",E315/100*E318,IF(C316=\"h\",C313*$E$12,0))","v":0}]
["Årligt metanflöde","Nm3 CH4/år",null,null,{"$f":"$E$11","v":0}]
["Årlig förlust","%",null,null,{"$f":"100*E317/E318","v":{"$error":"#DIV/0!"}}]
[]
["UTSLÄPP (Nm3/år) 1",{"$f":"Val!C20","v":0}]
["INDATA"]
["Utsläpp","Nm3 CH4/år"]
["RESULTAT","Skalning:"]
["Momentant utsläpp","Nm3 CH4/h",null,null,{"$f":"IF(C324=\"p\",E331/100*$E$8,IF(C324=\"h\",C323/$E$12,0))","v":0}]
["Momentant metanflöde","Nm3 CH4/h",null,null,{"$f":"$E$8","v":0}]
["Momentan förlust","%",null,null,{"$f":"E325/$E$8*100","v":{"$error":"#DIV/0!"}}]
["ÅRSVÄRDEN"]
["Årligt utsläpp","Nm3 CH4/år",null,null,{"$f":"C323","v":0}]
["Årligt metanflöde","Nm3 CH4/år",null,null,{"$f":"$E$11","v":0}]
["Årlig förlust","%",null,null,{"$f":"100*E329/E330","v":{"$error":"#DIV/0!"}}]
[]
["UTSLÄPP (Nm3/år) 2",{"$f":"Val!C21","v":0}]
["INDATA"]
["Utsläpp","Nm3 CH4/år"]
["RESULTAT","Skalning:"]
["Momentant utsläpp","Nm3 CH4/h",null,null,{"$f":"IF(C336=\"p\",E343/100*$E$8,IF(C336=\"h\",C335/$E$12,0))","v":0}]
["Momentant metanflöde","Nm3 CH4/h",null,null,{"$f":"$E$8","v":0}]
["Momentan förlust","%",null,null,{"$f":"E337/$E$8*100","v":{"$error":"#DIV/0!"}}]
["ÅRSVÄRDEN"]
["Årligt utsläpp","Nm3 CH4/år",null,null,{"$f":"C335","v":0}]
["Årligt metanflöde","Nm3 CH4/år",null,null,{"$f":"$E$11","v":0}]
["Årlig förlust","%",null,null,{"$f":"100*E341/E342","v":{"$error":"#DIV/0!"}}]
[]
["UTSLÄPP (Nm3/h) 1",{"$f":"Val!C22","v":0}]
["INDATA"]
["Utsläpp","Nm3 CH4/h"]
["RESULTAT"]
["Momentant utsläpp","Nm3 CH4/h",{"$f":"C347","v":0}]
["Momentant metanflöde","Nm3 CH4/h",null,null,{"$f":"$E$8","v":0}]
["Momentan förlust","%",null,null,{"$f":"C349/$E$8*100","v":{"$error":"#DIV/0!"}}]
["ÅRSVÄRDEN","Skalning:"]
["Årligt utsläpp","Nm3 CH4/år",null,null,{"$f":"IF(C352=\"p\",E351/100*E354,IF(C352=\"h\",C349*$E$12,0))","v":0}]
["Årligt metanflöde","Nm3 CH4/år",null,null,{"$f":"$E$11","v":0}]
["Årlig förlust","%",null,null,{"$f":"100*E353/E354","v":{"$error":"#DIV/0!"}}]
[]
["UTSLÄPP (Nm3/h) 2",{"$f":"Val!C23","v":0}]
["INDATA"]
["Utsläpp","Nm3 CH4/h"]
["RESULTAT"]
["Momentant utsläpp","Nm3 CH4/h",{"$f":"C359","v":0}]
["Momentant metanflöde","Nm3 CH4/h",null,null,{"$f":"$E$8","v":0}]
["Momentan förlust","%",null,null,{"$f":"C361/$E$8*100","v":{"$error":"#DIV/0!"}}]
["ÅRSVÄRDEN","Skalning:"]
["Årligt utsläpp","Nm3 CH4/år",null,null,{"$f":"IF(C364=\"p\",E363/100*E366,IF(C364=\"h\",C361*$E$12,0))","v":0}]
["Årligt metanflöde","Nm3 CH4/år",null,null,{"$f":"$E$11","v":0}]
["Årlig förlust","%",null,null,{"$f":"100*E365/E366","v":{"$error":"#DIV/0!"}}]
[]
["UTSLÄPP (Nm3/h) 3",{"$f":"Val!C24","v":0}]
["INDATA"]
["Utsläpp","Nm3 CH4/h"]
["RESULTAT"]
["Momentant utsläpp","Nm3 CH4/h",{"$f":"C371","v":0}]
["Momentant metanflöde","Nm3 CH4/h",null,null,{"$f":"$E$8","v":0}]
["Momentan förlust","%",null,null,{"$f":"C373/$E$8*100","v":{"$error":"#DIV/0!"}}]
["ÅRSVÄRDEN","Skalning:"]
["Årligt utsläpp","Nm3 CH4/år",null,null,{"$f":"IF(C376=\"p\",E375/100*E378,IF(C376=\"h\",C373*$E$12,0))","v":0}]
["Årligt metanflöde","Nm3 CH4/år",null,null,{"$f":"$E$11","v":0}]
["Årlig förlust","%",null,null,{"$f":"100*E377/E378","v":{"$error":"#DIV/0!"}}]
[]
["UTSLÄPP (Nm3/h) 4",{"$f":"Val!C25","v":0}]
["INDATA"]
["Utsläpp","Nm3 CH4/h"]
["RESULTAT"]
["Momentant utsläpp","Nm3 CH4/h",{"$f":"C383","v":0}]
["Momentant metanflöde","Nm3 CH4/h",null,null,{"$f":"$E$8","v":0}]
["Momentan förlust","%",null,null,{"$f":"C385/$E$8*100","v":{"$error":"#DIV/0!"}}]
["ÅRSVÄRDEN","Skalning:"]
["Årligt utsläpp","Nm3 CH4/år",null,null,{"$f":"IF(C388=\"p\",E387/100*E390,IF(C388=\"h\",C385*$E$12,0))","v":0}]
["Årligt metanflöde","Nm3 CH4/år",null,null,{"$f":"$E$11","v":0}]
["Årlig förlust","%",null,null,{"$f":"100*E389/E390","v":{"$error":"#DIV/0!"}}]
[]
["UTSLÄPP (Nm3/h) 5",{"$f":"Val!C26","v":0}]
["INDATA"]
["Utsläpp","Nm3 CH4/h"]
["RESULTAT"]
["Momentant utsläpp","Nm3 CH4/h",{"$f":"C395","v":0}]
["Momentant metanflöde","Nm3 CH4/h",null,null,{"$f":"$E$8","v":0}]
["Momentan förlust","%",null,null,{"$f":"C397/$E$8*100","v":{"$error":"#DIV/0!"}}]
["ÅRSVÄRDEN","Skalning:"]
["Årligt utsläpp","Nm3 CH4/år",null,null,{"$f":"IF(C400=\"p\",E399/100*E402,IF(C400=\"h\",C397*$E$12,0))","v":0}]
["Årligt metanflöde","Nm3 CH4/år",null,null,{"$f":"$E$11","v":0}]
["Årlig förlust","%",null,null,{"$f":"100*E401/E402","v":{"$error":"#DIV/0!"}}]
[]
["Uppdatera formeln i E15 om fler utsläppspunkter läggs till manuellt"]
["Uppdatera formeln i E17 om fler utsläppspunkter läggs till manuellt"]

{"sheet":"Sid 1","index":2,"n_rows":33,"n_cols":3,"rows_kept":33,"cut":false,"hidden":false,"merged":[]}
[]
[null,"Anläggning"]
[null,"Anläggningsnamn","Exempelanläggning"]
[null,"Adress","Exempelvägen 1"]
[null,"Huvudman/ägare","Biogas AB"]
[null,"Kontaktperson","Namn Namnsson"]
[null,"Telefon","010 - 123 45 67"]
[null,"Email","namn.namnsson@biogas.se"]
[]
[null,"Utförare av mätning"]
[null,"Företag","Mätföretaget AB"]
[null,"Utförare","Mät Mätsson"]
[null,"Telefon","010 - 999 12 34"]
[null,"Email","mat.matsson@matforetaget.se"]
[]
[null,"Genomförande av mätning"]
[null,"Mätdatum","2018-08-01"]
[null,"Tid","9:00 – 12:30"]
[null,"Väderförhållanden","Uppehåll, svag vind"]
[null,"Omgivningstemperatur","3 – 7 °C"]
[null,"Mätinstrument (metan)","Instrument Tillverkare Modell"]
[null,"Kalibreringsgaser","1000 ppm CH4/luft"]
[null,"Mätinstrument (gasflöde)","Instrument Tillverkare Modell"]
[null,"Kommentar rörande mätning"]
[]
[null,"Driftförhållanden vid mätning"]
[null,"Rågasflöde (Nm3/h)",{"$f":"Beräkningar!E6","v":0}]
[null,"Rågas metanhalt (vol-%)",{"$f":"Beräkningar!E7","v":0}]
[null,"Kommentar kring driften","Normal"]
[]
[null,"Data gällande årsproduktion"]
[null,"Behandlad rågas (Nm3/år)",{"$f":"Beräkningar!E9","v":0}]
[null,"Rågas metanhalt (vol-%)",{"$f":"Beräkningar!E10","v":0}]

{"sheet":"Analysinstrument","index":3,"n_rows":25,"n_cols":6,"rows_kept":25,"cut":false,"hidden":false,"merged":[[24,1,25,7],[26,1,27,7],[18,1,18,7],[1,1,1,7],[3,1,3,7],[17,1,17,7],[23,1,23,7],[11,1,11,7],[2,1,2,7],[4,1,5,7],[6,1,7,7],[9,1,10,7],[8,1,8,7]]}
[]
[null,"Identifikation av utsläppsobjekt"]
[null,{"$f":"Val!C7","v":"Fast installerade analysinstrument"}]
[null,"Beskrivning av utsläppsobjekt"]
[null,"Ett litet flöde gas leds kontinuerligt genom anläggningens gasanalysinstrument och vidare till atmosfär."]
[]
[null,"X st rågasflöden har identifierats i anläggningen."]
[]
[null,"Beskrivning av mätningens genomförande"]
[null,"Analyspanelens rotametrar har avlästs."]
[]
[null,"Momentant utsläpp och beräknad förlust (Nm3 CH4/h)"]
[null,"Beräkning sker på momentana (avlästa) värden av metanhalt."]
[null,"Qutsläpp","l/h",{"$f":"Beräkningar!C24","v":0}]
[null,"Momentant utsläpp","Nm3 CH4/h",{"$f":"Beräkningar!C25","v":0}]
[null,"Momentant metanflöde","Nm3 CH4/h",null,null,{"$f":"Beräkningar!E26","v":0}]
[null,"Momentan förlust","%",null,null,{"$f":"Beräkningar!E27","v":{"$error":"#DIV/0!"}}]
[null,"Beräknad kvantifiering av årliga utsläpp (Nm3 CH4/år)"]
[null,"Beräkning sker på årsmedelvärden av metanhalt."]
[]
[null,"Årligt utsläpp","Nm3 CH4/år",{"$f":"Beräkningar!C29","v":0}]
[null,"Årligt metanflöde","Nm3 CH4/år",null,null,{"$f":"Beräkningar!E30","v":0}]
[null,"Årlig förlust","%",null,null,{"$f":"Beräkningar!E31","v":{"$error":"#DIV/0!"}}]
[null,"Förslag på åtgärd"]
[null,"Se till att flödena inte är högre än nödvändigt."]

{"sheet":"Ventilation 1","index":4,"n_rows":25,"n_cols":6,"rows_kept":25,"cut":false,"hidden":false,"merged":[[26,1,27,7],[1,1,1,7],[2,1,2,7],[3,1,3,7],[4,1,5,7],[6,1,7,7],[8,1,8,7],[9,1,9,7],[10,1,10,7],[11,1,11,7],[17,1,17,7],[18,1,18,7],[23,1,23,7],[24,1,25,7]]}
[]
[null,"Identifikation av utsläppsobjekt"]
[null,{"$f":"Val!C8","v":0}]
[null,"Beskrivning av utsläppsobjekt"]
[null,"NNN"]
[]
[]
[]
[null,"Beskrivning av mätningens genomförande"]
[null,"Metanhalt är uppmätt med FID under XX minuter."]
[null,"Flödet är uppmätt med pitotrör varmtrådsgivare."]
[null,"Momentant utsläpp och beräknad förlust (Nm3 CH4/h)"]
[null,"CH4(utsläpp)","ppm",{"$f":"Beräkningar!C35","v":0}]
[null,"Qutsläpp","Nm3/h",{"$f":"Beräkningar!C48","v":0}]
[null,"Momentant utsläpp","Nm3 CH4/h",{"$f":"Beräkningar!C49","v":0}]
[null,"Momentant metanflöde","Nm3 CH4/h",null,null,{"$f":"Beräkningar!E50","v":0}]
[null,"Momentan förlust","%",null,null,{"$f":"Beräkningar!E51","v":{"$error":"#DIV/0!"}}]
[null,"Beräknad kvantifiering av årliga utsläpp (Nm3 CH4/år)"]
[null,{"$f":"IF(Beräkningar!C52=\"p\",\"Utsläppet antas variera relativt produktionen i anläggningen\",IF(Beräkningar!C52=\"h\",\"Utsläppet antas vara konstant över årets alla drifttimmar\",\"Görs ej\"))","v":"Görs ej"}]
[]
[null,"Årligt utsläpp","Nm3 CH4/år",null,null,{"$f":"Beräkningar!E53","v":0}]
[null,"Årligt metanflöde","Nm3 CH4/år",null,null,{"$f":"Beräkningar!E54","v":0}]
[null,"Årlig förlust","%",null,null,{"$f":"Beräkningar!E55","v":{"$error":"#DIV/0!"}}]
[null,"Förslag på åtgärd"]
[null,"Läcksökning och åtgärdande av funna läckor."]

{"sheet":"Ventilation 2","index":5,"n_rows":25,"n_cols":6,"rows_kept":25,"cut":false,"hidden":false,"merged":[[8,1,8,7],[1,1,1,7],[2,1,2,7],[3,1,3,7],[4,1,5,7],[6,1,7,7],[24,1,25,7],[26,1,27,7],[9,1,9,7],[10,1,10,7],[11,1,11,7],[17,1,17,7],[18,1,18,7],[23,1,23,7]]}
[]
[null,"Identifikation av utsläppsobjekt"]
[null,{"$f":"Val!C9","v":0}]
[null,"Beskrivning av utsläppsobjekt"]
[null,"NNN"]
[]
[]
[]
[null,"Beskrivning av mätningens genomförande"]
[null,"Metanhalt är uppmätt med FID under XX minuter."]
[null,"Flödet är uppmätt med pitotrör varmtrådsgivare."]
[null,"Momentant utsläpp och beräknad förlust (Nm3 CH4/h)"]
[null,"CH4(utsläpp)","ppm",{"$f":"Beräkningar!C59","v":0}]
[null,"Qutsläpp","Nm3/h",{"$f":"Beräkningar!C72","v":0}]
[null,"Momentant utsläpp","Nm3 CH4/h",{"$f":"Beräkningar!C73","v":0}]
[null,"Momentant metanflöde","Nm3 CH4/h",null,null,{"$f":"Beräkningar!E74","v":0}]
[null,"Momentan förlust","%",null,null,{"$f":"Beräkningar!E75","v":{"$error":"#DIV/0!"}}]
[null,"Beräknad kvantifiering av årliga utsläpp (Nm3 CH4/år)"]
[null,{"$f":"IF(Beräkningar!C76=\"p\",\"Utsläppet antas variera relativt produktionen i anläggningen\",IF(Beräkningar!C76=\"h\",\"Utsläppet antas vara konstant över årets alla drifttimmar\",\"Görs ej\"))","v":"Görs ej"}]
[]
[null,"Årligt utsläpp","Nm3 CH4/år",null,null,{"$f":"Beräkningar!E77","v":0}]
[null,"Årligt metanflöde","Nm3 CH4/år",null,null,{"$f":"Beräkningar!E78","v":0}]
[null,"Årlig förlust","%",null,null,{"$f":"Beräkningar!E79","v":{"$error":"#DIV/0!"}}]
[null,"Förslag på åtgärd"]
[null,"Läcksökning och åtgärdande av funna läckor."]

{"sheet":"Ventilation 3","index":6,"n_rows":25,"n_cols":6,"rows_kept":25,"cut":false,"hidden":false,"merged":[[8,1,8,7],[1,1,1,7],[2,1,2,7],[3,1,3,7],[4,1,5,7],[6,1,7,7],[24,1,25,7],[26,1,27,7],[9,1,9,7],[10,1,10,7],[11,1,11,7],[17,1,17,7],[18,1,18,7],[23,1,23,7]]}
[]
[null,"Identifikation av utsläppsobjekt"]
[null,{"$f":"Val!C10","v":0}]
[null,"Beskrivning av utsläppsobjekt"]
[null,"NNN"]
[]
[]
[]
[null,"Beskrivning av mätningens genomförande"]
[null,"Metanhalt är uppmätt med FID under XX minuter."]
[null,"Flödet är uppmätt med pitotrör varmtrådsgivare."]
[null,"Momentant utsläpp och beräknad förlust (Nm3 CH4/h)"]
[null,"CH4(utsläpp)","ppm",{"$f":"Beräkningar!C83","v":0}]
[null,"Qutsläpp","Nm3/h",{"$f":"Beräkningar!C96","v":0}]
[null,"Momentant utsläpp","Nm3 CH4/h",{"$f":"Beräkningar!C97","v":0}]
[null,"Momentant metanflöde","Nm3 CH4/h",null,null,{"$f":"Beräkningar!E98","v":0}]
[null,"Momentan förlust","%",null,null,{"$f":"Beräkningar!E99","v":{"$error":"#DIV/0!"}}]
[null,"Beräknad kvantifiering av årliga utsläpp (Nm3 CH4/år)"]
[null,{"$f":"IF(Beräkningar!C100=\"p\",\"Utsläppet antas variera relativt produktionen i anläggningen\",IF(Beräkningar!C100=\"h\",\"Utsläppet antas vara konstant över årets alla drifttimmar\",\"Görs ej\"))","v":"Görs ej"}]
[]
[null,"Årligt utsläpp","Nm3 CH4/år",null,null,{"$f":"Beräkningar!E101","v":0}]
[null,"Årligt metanflöde","Nm3 CH4/år",null,null,{"$f":"Beräkningar!E102","v":0}]
[null,"Årlig förlust","%",null,null,{"$f":"Beräkningar!E103","v":{"$error":"#DIV/0!"}}]
[null,"Förslag på åtgärd"]
[null,"Läcksökning och åtgärdande av funna läckor."]

{"sheet":"Ventilation 4","index":7,"n_rows":25,"n_cols":6,"rows_kept":25,"cut":false,"hidden":false,"merged":[[8,1,8,7],[1,1,1,7],[2,1,2,7],[3,1,3,7],[4,1,5,7],[6,1,7,7],[24,1,25,7],[26,1,27,7],[9,1,9,7],[10,1,10,7],[11,1,11,7],[17,1,17,7],[18,1,18,7],[23,1,23,7]]}
[]
[null,"Identifikation av utsläppsobjekt"]
[null,{"$f":"Val!C11","v":0}]
[null,"Beskrivning av utsläppsobjekt"]
[null,"NNN"]
[]
[]
[]
[null,"Beskrivning av mätningens genomförande"]
[null,"Metanhalt är uppmätt med FID under XX minuter."]
[null,"Flödet är uppmätt med pitotrör varmtrådsgivare."]
[null,"Momentant utsläpp och beräknad förlust (Nm3 CH4/h)"]
[null,"CH4(utsläpp)","ppm",{"$f":"Beräkningar!C107","v":0}]
[null,"Qutsläpp","Nm3/h",{"$f":"Beräkningar!C120","v":0}]
[null,"Momentant utsläpp","Nm3 CH4/h",{"$f":"Beräkningar!C121","v":0}]
[null,"Momentant metanflöde","Nm3 CH4/h",null,null,{"$f":"Beräkningar!E122","v":0}]
[null,"Momentan förlust","%",null,null,{"$f":"Beräkningar!E123","v":{"$error":"#DIV/0!"}}]
[null,"Beräknad kvantifiering av årliga utsläpp (Nm3 CH4/år)"]
[null,{"$f":"IF(Beräkningar!C124=\"p\",\"Utsläppet antas variera relativt produktionen i anläggningen\",IF(Beräkningar!C124=\"h\",\"Utsläppet antas vara konstant över årets alla drifttimmar\",\"Görs ej\"))","v":"Görs ej"}]
[]
[null,"Årligt utsläpp","Nm3 CH4/år",null,null,{"$f":"Beräkningar!E125","v":0}]
[null,"Årligt metanflöde","Nm3 CH4/år",null,null,{"$f":"Beräkningar!E126","v":0}]
[null,"Årlig förlust","%",null,null,{"$f":"Beräkningar!E127","v":{"$error":"#DIV/0!"}}]
[null,"Förslag på åtgärd"]
[null,"Läcksökning och åtgärdande av funna läckor."]

{"sheet":"Ventilation 5","index":8,"n_rows":25,"n_cols":6,"rows_kept":25,"cut":false,"hidden":false,"merged":[[8,1,8,7],[1,1,1,7],[2,1,2,7],[3,1,3,7],[4,1,5,7],[6,1,7,7],[24,1,25,7],[26,1,27,7],[9,1,9,7],[10,1,10,7],[11,1,11,7],[17,1,17,7],[18,1,18,7],[23,1,23,7]]}
[]
[null,"Identifikation av utsläppsobjekt"]
[null,{"$f":"Val!C12","v":0}]
[null,"Beskrivning av utsläppsobjekt"]
[null,"NNN"]
[]
[]
[]
[null,"Beskrivning av mätningens genomförande"]
[null,"Metanhalt är uppmätt med FID under XX minuter."]
[null,"Flödet är uppmätt med pitotrör varmtrådsgivare."]
[null,"Momentant utsläpp och beräknad förlust (Nm3 CH4/h)"]
[null,"CH4(utsläpp)","ppm",{"$f":"Beräkningar!C131","v":0}]
[null,"Qutsläpp","Nm3/h",{"$f":"Beräkningar!C144","v":0}]
[null,"Momentant utsläpp","Nm3 CH4/h",{"$f":"Beräkningar!C145","v":0}]
[null,"Momentant metanflöde","Nm3 CH4/h",null,null,{"$f":"Beräkningar!E146","v":0}]
[null,"Momentan förlust","%",null,null,{"$f":"Beräkningar!E147","v":{"$error":"#DIV/0!"}}]
[null,"Beräknad kvantifiering av årliga utsläpp (Nm3 CH4/år)"]
[null,{"$f":"IF(Beräkningar!C148=\"p\",\"Utsläppet antas variera relativt produktionen i anläggningen\",IF(Beräkningar!C148=\"h\",\"Utsläppet antas vara konstant över årets alla drifttimmar\",\"Görs ej\"))","v":"Görs ej"}]
[]
[null,"Årligt utsläpp","Nm3 CH4/år",null,null,{"$f":"Beräkningar!E149","v":0}]
[null,"Årligt metanflöde","Nm3 CH4/år",null,null,{"$f":"Beräkningar!E150","v":0}]
[null,"Årlig förlust","%",null,null,{"$f":"Beräkningar!E151","v":{"$error":"#DIV/0!"}}]
[null,"Förslag på åtgärd"]
[null,"Läcksökning och åtgärdande av funna läckor."]

{"sheet":"Ventilation 6","index":9,"n_rows":25,"n_cols":6,"rows_kept":25,"cut":false,"hidden":false,"merged":[[24,1,25,7],[26,1,27,7],[9,1,9,7],[10,1,10,7],[11,1,11,7],[17,1,17,7],[18,1,18,7],[23,1,23,7],[8,1,8,7],[1,1,1,7],[2,1,2,7],[3,1,3,7],[4,1,5,7],[6,1,7,7]]}
[]
[null,"Identifikation av utsläppsobjekt"]
[null,{"$f":"Val!C13","v":0}]
[null,"Beskrivning av utsläppsobjekt"]
[null,"NNN"]
[]
[]
[]
[null,"Beskrivning av mätningens genomförande"]
[null,"Metanhalt är uppmätt med FID under XX minuter."]
[null,"Flödet är uppmätt med pitotrör varmtrådsgivare."]
[null,"Momentant utsläpp och beräknad förlust (Nm3 CH4/h)"]
[null,"CH4(utsläpp)","ppm",{"$f":"Beräkningar!C155","v":0}]
[null,"Qutsläpp","Nm3/h",{"$f":"Beräkningar!C168","v":0}]
[null,"Momentant utsläpp","Nm3 CH4/h",{"$f":"Beräkningar!C169","v":0}]
[null,"Momentant metanflöde","Nm3 CH4/h",null,null,{"$f":"Beräkningar!E170","v":0}]
[null,"Momentan förlust","%",null,null,{"$f":"Beräkningar!E171","v":{"$error":"#DIV/0!"}}]
[null,"Beräknad kvantifiering av årliga utsläpp (Nm3 CH4/år)"]
[null,{"$f":"IF(Beräkningar!C172=\"p\",\"Utsläppet antas variera relativt produktionen i anläggningen\",IF(Beräkningar!C172=\"h\",\"Utsläppet antas vara konstant över årets alla drifttimmar\",\"Görs ej\"))","v":"Görs ej"}]
[]
[null,"Årligt utsläpp","Nm3 CH4/år",null,null,{"$f":"Beräkningar!E173","v":0}]
[null,"Årligt metanflöde","Nm3 CH4/år",null,null,{"$f":"Beräkningar!E174","v":0}]
[null,"Årlig förlust","%",null,null,{"$f":"Beräkningar!E175","v":{"$error":"#DIV/0!"}}]
[null,"Förslag på åtgärd"]
[null,"Läcksökning och åtgärdande av funna läckor."]

{"sheet":"Ventilation 7","index":10,"n_rows":25,"n_cols":6,"rows_kept":25,"cut":false,"hidden":false,"merged":[[24,1,25,7],[26,1,27,7],[9,1,9,7],[10,1,10,7],[11,1,11,7],[17,1,17,7],[18,1,18,7],[23,1,23,7],[8,1,8,7],[1,1,1,7],[2,1,2,7],[3,1,3,7],[4,1,5,7],[6,1,7,7]]}
[]
[null,"Identifikation av utsläppsobjekt"]
[null,{"$f":"Val!C14","v":0}]
[null,"Beskrivning av utsläppsobjekt"]
[null,"NNN"]
[]
[]
[]
[null,"Beskrivning av mätningens genomförande"]
[null,"Metanhalt är uppmätt med FID under XX minuter."]
[null,"Flödet är uppmätt med pitotrör varmtrådsgivare."]
[null,"Momentant utsläpp och beräknad förlust (Nm3 CH4/h)"]
[null,"CH4(utsläpp)","ppm",{"$f":"Beräkningar!C179","v":0}]
[null,"Qutsläpp","Nm3/h",{"$f":"Beräkningar!C192","v":0}]
[null,"Momentant utsläpp","Nm3 CH4/h",{"$f":"Beräkningar!C193","v":0}]
[null,"Momentant metanflöde","Nm3 CH4/h",null,null,{"$f":"Beräkningar!E194","v":0}]
[null,"Momentan förlust","%",null,null,{"$f":"Beräkningar!E195","v":{"$error":"#DIV/0!"}}]
[null,"Beräknad kvantifiering av årliga utsläpp (Nm3 CH4/år)"]
[null,{"$f":"IF(Beräkningar!C196=\"p\",\"Utsläppet antas variera relativt produktionen i anläggningen\",IF(Beräkningar!C196=\"h\",\"Utsläppet antas vara konstant över årets alla drifttimmar\",\"Görs ej\"))","v":"Görs ej"}]
[]
[null,"Årligt utsläpp","Nm3 CH4/år",null,null,{"$f":"Beräkningar!E197","v":0}]
[null,"Årligt metanflöde","Nm3 CH4/år",null,null,{"$f":"Beräkningar!E198","v":0}]
[null,"Årlig förlust","%",null,null,{"$f":"Beräkningar!E199","v":{"$error":"#DIV/0!"}}]
[null,"Förslag på åtgärd"]
[null,"Läcksökning och åtgärdande av funna läckor."]

{"sheet":"Ventilation 8","index":11,"n_rows":25,"n_cols":6,"rows_kept":25,"cut":false,"hidden":false,"merged":[[24,1,25,7],[26,1,27,7],[9,1,9,7],[10,1,10,7],[11,1,11,7],[17,1,17,7],[18,1,18,7],[23,1,23,7],[8,1,8,7],[1,1,1,7],[2,1,2,7],[3,1,3,7],[4,1,5,7],[6,1,7,7]]}
[]
[null,"Identifikation av utsläppsobjekt"]
[null,{"$f":"Val!C15","v":0}]
[null,"Beskrivning av utsläppsobjekt"]
[null,"NNN"]
[]
[]
[]
[null,"Beskrivning av mätningens genomförande"]
[null,"Metanhalt är uppmätt med FID under XX minuter."]
[null,"Flödet är uppmätt med pitotrör varmtrådsgivare."]
[null,"Momentant utsläpp och beräknad förlust (Nm3 CH4/h)"]
[null,"CH4(utsläpp)","ppm",{"$f":"Beräkningar!C203","v":0}]
[null,"Qutsläpp","Nm3/h",{"$f":"Beräkningar!C216","v":0}]
[null,"Momentant utsläpp","Nm3 CH4/h",{"$f":"Beräkningar!C217","v":0}]
[null,"Momentant metanflöde","Nm3 CH4/h",null,null,{"$f":"Beräkningar!E218","v":0}]
[null,"Momentan förlust","%",null,null,{"$f":"Beräkningar!E219","v":{"$error":"#DIV/0!"}}]
[null,"Beräknad kvantifiering av årliga utsläpp (Nm3 CH4/år)"]
[null,{"$f":"IF(Beräkningar!C220=\"p\",\"Utsläppet antas variera relativt produktionen i anläggningen\",IF(Beräkningar!C220=\"h\",\"Utsläppet antas vara konstant över årets alla drifttimmar\",\"Görs ej\"))","v":"Görs ej"}]
[]
[null,"Årligt utsläpp","Nm3 CH4/år",null,null,{"$f":"Beräkningar!E221","v":0}]
[null,"Årligt metanflöde","Nm3 CH4/år",null,null,{"$f":"Beräkningar!E222","v":0}]
[null,"Årlig förlust","%",null,null,{"$f":"Beräkningar!E223","v":{"$error":"#DIV/0!"}}]
[null,"Förslag på åtgärd"]
[null,"Läcksökning och åtgärdande av funna läckor."]

{"sheet":"Ventilation 9","index":12,"n_rows":25,"n_cols":6,"rows_kept":25,"cut":false,"hidden":false,"merged":[[24,1,25,7],[26,1,27,7],[9,1,9,7],[10,1,10,7],[11,1,11,7],[17,1,17,7],[18,1,18,7],[23,1,23,7],[8,1,8,7],[1,1,1,7],[2,1,2,7],[3,1,3,7],[4,1,5,7],[6,1,7,7]]}
[]
[null,"Identifikation av utsläppsobjekt"]
[null,{"$f":"Val!C16","v":0}]
[null,"Beskrivning av utsläppsobjekt"]
[null,"NNN"]
[]
[]
[]
[null,"Beskrivning av mätningens genomförande"]
[null,"Metanhalt är uppmätt med FID under XX minuter."]
[null,"Flödet är uppmätt med pitotrör varmtrådsgivare."]
[null,"Momentant utsläpp och beräknad förlust (Nm3 CH4/h)"]
[null,"CH4(utsläpp)","ppm",{"$f":"Beräkningar!C227","v":0}]
[null,"Qutsläpp","Nm3/h",{"$f":"Beräkningar!C240","v":0}]
[null,"Momentant utsläpp","Nm3 CH4/h",{"$f":"Beräkningar!C241","v":0}]
[null,"Momentant metanflöde","Nm3 CH4/h",null,null,{"$f":"Beräkningar!E242","v":0}]
[null,"Momentan förlust","%",null,null,{"$f":"Beräkningar!E243","v":{"$error":"#DIV/0!"}}]
[null,"Beräknad kvantifiering av årliga utsläpp (Nm3 CH4/år)"]
[null,{"$f":"IF(Beräkningar!C244=\"p\",\"Utsläppet antas variera relativt produktionen i anläggningen\",IF(Beräkningar!C244=\"h\",\"Utsläppet antas vara konstant över årets alla drifttimmar\",\"Görs ej\"))","v":"Görs ej"}]
[]
[null,"Årligt utsläpp","Nm3 CH4/år",null,null,{"$f":"Beräkningar!E245","v":0}]
[null,"Årligt metanflöde","Nm3 CH4/år",null,null,{"$f":"Beräkningar!E246","v":0}]
[null,"Årlig förlust","%",null,null,{"$f":"Beräkningar!E247","v":{"$error":"#DIV/0!"}}]
[null,"Förslag på åtgärd"]
[null,"Läcksökning och åtgärdande av funna läckor."]

{"sheet":"Ventilation 10","index":13,"n_rows":25,"n_cols":6,"rows_kept":25,"cut":false,"hidden":false,"merged":[[24,1,25,7],[26,1,27,7],[9,1,9,7],[10,1,10,7],[11,1,11,7],[17,1,17,7],[18,1,18,7],[23,1,23,7],[8,1,8,7],[1,1,1,7],[2,1,2,7],[3,1,3,7],[4,1,5,7],[6,1,7,7]]}
[]
[null,"Identifikation av utsläppsobjekt"]
[null,{"$f":"Val!C17","v":0}]
[null,"Beskrivning av utsläppsobjekt"]
[null,"NNN"]
[]
[]
[]
[null,"Beskrivning av mätningens genomförande"]
[null,"Metanhalt är uppmätt med FID under XX minuter."]
[null,"Flödet är uppmätt med pitotrör varmtrådsgivare."]
[null,"Momentant utsläpp och beräknad förlust (Nm3 CH4/h)"]
[null,"CH4(utsläpp)","ppm",{"$f":"Beräkningar!C251","v":0}]
[null,"Qutsläpp","Nm3/h",{"$f":"Beräkningar!C264","v":0}]
[null,"Momentant utsläpp","Nm3 CH4/h",{"$f":"Beräkningar!C265","v":0}]
[null,"Momentant metanflöde","Nm3 CH4/h",null,null,{"$f":"Beräkningar!E266","v":0}]
[null,"Momentan förlust","%",null,null,{"$f":"Beräkningar!E267","v":{"$error":"#DIV/0!"}}]
[null,"Beräknad kvantifiering av årliga utsläpp (Nm3 CH4/år)"]
[null,{"$f":"IF(Beräkningar!C268=\"p\",\"Utsläppet antas variera relativt produktionen i anläggningen\",IF(Beräkningar!C268=\"h\",\"Utsläppet antas vara konstant över årets alla drifttimmar\",\"Görs ej\"))","v":"Görs ej"}]
[]
[null,"Årligt utsläpp","Nm3 CH4/år",null,null,{"$f":"Beräkningar!E269","v":0}]
[null,"Årligt metanflöde","Nm3 CH4/år",null,null,{"$f":"Beräkningar!E270","v":0}]
[null,"Årlig förlust","%",null,null,{"$f":"Beräkningar!E271","v":{"$error":"#DIV/0!"}}]
[null,"Förslag på åtgärd"]
[null,"Läcksökning och åtgärdande av funna läckor."]

{"sheet":"Ventilation 11","index":14,"n_rows":25,"n_cols":6,"rows_kept":25,"cut":false,"hidden":false,"merged":[[8,1,8,7],[1,1,1,7],[2,1,2,7],[3,1,3,7],[4,1,5,7],[6,1,7,7],[24,1,25,7],[26,1,27,7],[9,1,9,7],[10,1,10,7],[11,1,11,7],[17,1,17,7],[18,1,18,7],[23,1,23,7]]}
[]
[null,"Identifikation av utsläppsobjekt"]
[null,{"$f":"Val!C18","v":0}]
[null,"Beskrivning av utsläppsobjekt"]
[null,"NNN"]
[]
[]
[]
[null,"Beskrivning av mätningens genomförande"]
[null,"Metanhalt är uppmätt med FID under XX minuter."]
[null,"Flödet är uppmätt med pitotrör varmtrådsgivare."]
[null,"Momentant utsläpp och beräknad förlust (Nm3 CH4/h)"]
[null,"CH4(utsläpp)","ppm",{"$f":"Beräkningar!C275","v":0}]
[null,"Qutsläpp","Nm3/h",{"$f":"Beräkningar!C288","v":0}]
[null,"Momentant utsläpp","Nm3 CH4/h",{"$f":"Beräkningar!C289","v":0}]
[null,"Momentant metanflöde","Nm3 CH4/h",null,null,{"$f":"Beräkningar!E290","v":0}]
[null,"Momentan förlust","%",null,null,{"$f":"Beräkningar!E291","v":{"$error":"#DIV/0!"}}]
[null,"Beräknad kvantifiering av årliga utsläpp (Nm3 CH4/år)"]
[null,{"$f":"IF(Beräkningar!C292=\"p\",\"Utsläppet antas variera relativt produktionen i anläggningen\",IF(Beräkningar!C292=\"h\",\"Utsläppet antas vara konstant över årets alla drifttimmar\",\"Görs ej\"))","v":"Görs ej"}]
[]
[null,"Årligt utsläpp","Nm3 CH4/år",null,null,{"$f":"Beräkningar!E293","v":0}]
[null,"Årligt metanflöde","Nm3 CH4/år",null,null,{"$f":"Beräkningar!E294","v":0}]
[null,"Årlig förlust","%",null,null,{"$f":"Beräkningar!E295","v":{"$error":"#DIV/0!"}}]
[null,"Förslag på åtgärd"]
[null,"Läcksökning och åtgärdande av funna läckor."]

{"sheet":"Ventilation 12","index":15,"n_rows":25,"n_cols":6,"rows_kept":25,"cut":false,"hidden":false,"merged":[[8,1,8,7],[1,1,1,7],[2,1,2,7],[3,1,3,7],[4,1,5,7],[6,1,7,7],[24,1,25,7],[26,1,27,7],[9,1,9,7],[10,1,10,7],[11,1,11,7],[17,1,17,7],[18,1,18,7],[23,1,23,7]]}
[]
[null,"Identifikation av utsläppsobjekt"]
[null,{"$f":"Val!C19","v":0}]
[null,"Beskrivning av utsläppsobjekt"]
[null,"NNN"]
[]
[]
[]
[null,"Beskrivning av mätningens genomförande"]
[null,"Metanhalt är uppmätt med FID under XX minuter."]
[null,"Flödet är uppmätt med pitotrör varmtrådsgivare."]
[null,"Momentant utsläpp och beräknad förlust (Nm3 CH4/h)"]
[null,"CH4(utsläpp)","ppm",{"$f":"Beräkningar!C299","v":0}]
[null,"Qutsläpp","Nm3/h",{"$f":"Beräkningar!C312","v":0}]
[null,"Momentant utsläpp","Nm3 CH4/h",{"$f":"Beräkningar!C313","v":0}]
[null,"Momentant metanflöde","Nm3 CH4/h",null,null,{"$f":"Beräkningar!E314","v":0}]
[null,"Momentan förlust","%",null,null,{"$f":"Beräkningar!E315","v":{"$error":"#DIV/0!"}}]
[null,"Beräknad kvantifiering av årliga utsläpp (Nm3 CH4/år)"]
[null,{"$f":"IF(Beräkningar!C316=\"p\",\"Utsläppet antas variera relativt produktionen i anläggningen\",IF(Beräkningar!C316=\"h\",\"Utsläppet antas vara konstant över årets alla drifttimmar\",\"Görs ej\"))","v":"Görs ej"}]
[]
[null,"Årligt utsläpp","Nm3 CH4/år",null,null,{"$f":"Beräkningar!E317","v":0}]
[null,"Årligt metanflöde","Nm3 CH4/år",null,null,{"$f":"Beräkningar!E318","v":0}]
[null,"Årlig förlust","%",null,null,{"$f":"Beräkningar!E319","v":{"$error":"#DIV/0!"}}]
[null,"Förslag på åtgärd"]
[null,"Läcksökning och åtgärdande av funna läckor."]

{"sheet":"Utsläpp år 1","index":16,"n_rows":25,"n_cols":6,"rows_kept":25,"cut":false,"hidden":false,"merged":[[8,1,8,7],[1,1,1,7],[2,1,2,7],[3,1,3,7],[4,1,5,7],[6,1,7,7],[24,1,25,7],[26,1,27,7],[9,1,9,7],[10,1,10,7],[11,1,11,7],[17,1,17,7],[18,1,18,7],[23,1,23,7]]}
[]
[null,"Identifikation av utsläppsobjekt"]
[null,{"$f":"Val!C20","v":0}]
[null,"Beskrivning av utsläppsobjekt"]
[null,"NNN"]
[]
[]
[]
[null,"Beskrivning av mätningens genomförande"]
[null,"NNN"]
[]
[null,"Momentant utsläpp och beräknad förlust (Nm3 CH4/h)"]
[null,{"$f":"IF(Beräkningar!C324=\"p\",\"Utsläppet antas variera relativt produktionen i anläggningen\",IF(Beräkningar!C324=\"h\",\"Utsläppet antas vara konstant över årets alla drifttimmar\",\"Görs ej\"))","v":"Görs ej"}]
[]
[null,"Momentant utsläpp","Nm3 CH4/h",null,null,{"$f":"Beräkningar!E325","v":0}]
[null,"Momentant metanflöde","Nm3 CH4/h",null,null,{"$f":"Beräkningar!E326","v":0}]
[null,"Momentan förlust","%",null,null,{"$f":"Beräkningar!E327","v":{"$error":"#DIV/0!"}}]
[null,"Beräknad kvantifiering av årliga utsläpp (Nm3 CH4/år)"]
[]
[]
[null,"Årligt utsläpp","Nm3 CH4/år",null,null,{"$f":"Beräkningar!E329","v":0}]
[null,"Årligt metanflöde","Nm3 CH4/år",null,null,{"$f":"Beräkningar!E330","v":0}]
[null,"Årlig förlust","%",null,null,{"$f":"Beräkningar!E331","v":{"$error":"#DIV/0!"}}]
[null,"Förslag på åtgärd"]
[null,"NNN"]

{"sheet":"Utsläpp år 2","index":17,"n_rows":25,"n_cols":6,"rows_kept":25,"cut":false,"hidden":false,"merged":[[8,1,8,7],[1,1,1,7],[2,1,2,7],[3,1,3,7],[4,1,5,7],[6,1,7,7],[24,1,25,7],[26,1,27,7],[9,1,9,7],[10,1,10,7],[11,1,11,7],[17,1,17,7],[18,1,18,7],[23,1,23,7]]}
[]
[null,"Identifikation av utsläppsobjekt"]
[null,{"$f":"Val!C21","v":0}]
[null,"Beskrivning av utsläppsobjekt"]
[null,"NNN"]
[]
[]
[]
[null,"Beskrivning av mätningens genomförande"]
[null,"NNN"]
[]
[null,"Momentant utsläpp och beräknad förlust (Nm3 CH4/h)"]
[null,{"$f":"IF(Beräkningar!C336=\"p\",\"Utsläppet antas variera relativt produktionen i anläggningen\",IF(Beräkningar!C336=\"h\",\"Utsläppet antas vara konstant över årets alla drifttimmar\",\"Görs ej\"))","v":"Görs ej"}]
[]
[null,"Momentant utsläpp","Nm3 CH4/h",null,null,{"$f":"Beräkningar!E337","v":0}]
[null,"Momentant metanflöde","Nm3 CH4/h",null,null,{"$f":"Beräkningar!E338","v":0}]
[null,"Momentan förlust","%",null,null,{"$f":"Beräkningar!E339","v":{"$error":"#DIV/0!"}}]
[null,"Beräknad kvantifiering av årliga utsläpp (Nm3 CH4/år)"]
[]
[]
[null,"Årligt utsläpp","Nm3 CH4/år",null,null,{"$f":"Beräkningar!E341","v":0}]
[null,"Årligt metanflöde","Nm3 CH4/år",null,null,{"$f":"Beräkningar!E342","v":0}]
[null,"Årlig förlust","%",null,null,{"$f":"Beräkningar!E343","v":{"$error":"#DIV/0!"}}]
[null,"Förslag på åtgärd"]
[null,"NNN"]

{"sheet":"Utsläpp h 1","index":18,"n_rows":25,"n_cols":6,"rows_kept":25,"cut":false,"hidden":false,"merged":[[8,1,8,7],[1,1,1,7],[2,1,2,7],[3,1,3,7],[4,1,5,7],[6,1,7,7],[24,1,25,7],[26,1,27,7],[9,1,9,7],[10,1,10,7],[11,1,11,7],[17,1,17,7],[18,1,18,7],[23,1,23,7]]}
[]
[null,"Identifikation av utsläppsobjekt"]
[null,{"$f":"Val!C22","v":0}]
[null,"Beskrivning av utsläppsobjekt"]
[null,"NNN"]
[]
[]
[]
[null,"Beskrivning av mätningens genomförande"]
[null,"NNN"]
[]
[null,"Momentant utsläpp och beräknad förlust (Nm3 CH4/h)"]
[]
[]
[null,"Momentant utsläpp","Nm3 CH4/h",{"$f":"Beräkningar!C349","v":0}]
[null,"Momentant metanflöde","Nm3 CH4/h",null,null,{"$f":"Beräkningar!E350","v":0}]
[null,"Momentan förlust","%",null,null,{"$f":"Beräkningar!E351","v":{"$error":"#DIV/0!"}}]
[null,"Beräknad kvantifiering av årliga utsläpp (Nm3 CH4/år)"]
[null,{"$f":"IF(Beräkningar!C352=\"p\",\"Utsläppet antas variera relativt produktionen i anläggningen\",IF(Beräkningar!C352=\"h\",\"Utsläppet antas vara konstant över årets alla drifttimmar\",\"Görs ej\"))","v":"Görs ej"}]
[]
[null,"Årligt utsläpp","Nm3 CH4/år",null,null,{"$f":"Beräkningar!E353","v":0}]
[null,"Årligt metanflöde","Nm3 CH4/år",null,null,{"$f":"Beräkningar!E354","v":0}]
[null,"Årlig förlust","%",null,null,{"$f":"Beräkningar!E355","v":{"$error":"#DIV/0!"}}]
[null,"Förslag på åtgärd"]
[null,"NNN"]

{"sheet":"Utsläpp h 2","index":19,"n_rows":25,"n_cols":6,"rows_kept":25,"cut":false,"hidden":false,"merged":[[8,1,8,7],[1,1,1,7],[2,1,2,7],[3,1,3,7],[4,1,5,7],[6,1,7,7],[24,1,25,7],[26,1,27,7],[9,1,9,7],[10,1,10,7],[11,1,11,7],[17,1,17,7],[18,1,18,7],[23,1,23,7]]}
[]
[null,"Identifikation av utsläppsobjekt"]
[null,{"$f":"Val!C23","v":0}]
[null,"Beskrivning av utsläppsobjekt"]
[null,"NNN"]
[]
[]
[]
[null,"Beskrivning av mätningens genomförande"]
[null,"NNN"]
[]
[null,"Momentant utsläpp och beräknad förlust (Nm3 CH4/h)"]
[]
[]
[null,"Momentant utsläpp","Nm3 CH4/h",{"$f":"Beräkningar!C361","v":0}]
[null,"Momentant metanflöde","Nm3 CH4/h",null,null,{"$f":"Beräkningar!E362","v":0}]
[null,"Momentan förlust","%",null,null,{"$f":"Beräkningar!E363","v":{"$error":"#DIV/0!"}}]
[null,"Beräknad kvantifiering av årliga utsläpp (Nm3 CH4/år)"]
[null,{"$f":"IF(Beräkningar!C364=\"p\",\"Utsläppet antas variera relativt produktionen i anläggningen\",IF(Beräkningar!C364=\"h\",\"Utsläppet antas vara konstant över årets alla drifttimmar\",\"Görs ej\"))","v":"Görs ej"}]
[]
[null,"Årligt utsläpp","Nm3 CH4/år",null,null,{"$f":"Beräkningar!E365","v":0}]
[null,"Årligt metanflöde","Nm3 CH4/år",null,null,{"$f":"Beräkningar!E366","v":0}]
[null,"Årlig förlust","%",null,null,{"$f":"Beräkningar!E367","v":{"$error":"#DIV/0!"}}]
[null,"Förslag på åtgärd"]
[null,"NNN"]

{"sheet":"Utsläpp h 3","index":20,"n_rows":25,"n_cols":6,"rows_kept":25,"cut":false,"hidden":false,"merged":[[8,1,8,7],[1,1,1,7],[2,1,2,7],[3,1,3,7],[4,1,5,7],[6,1,7,7],[24,1,25,7],[26,1,27,7],[9,1,9,7],[10,1,10,7],[11,1,11,7],[17,1,17,7],[18,1,18,7],[23,1,23,7]]}
[]
[null,"Identifikation av utsläppsobjekt"]
[null,{"$f":"Val!C24","v":0}]
[null,"Beskrivning av utsläppsobjekt"]
[null,"NNN"]
[]
[]
[]
[null,"Beskrivning av mätningens genomförande"]
[null,"NNN"]
[]
[null,"Momentant utsläpp och beräknad förlust (Nm3 CH4/h)"]
[]
[]
[null,"Momentant utsläpp","Nm3 CH4/h",{"$f":"Beräkningar!C373","v":0}]
[null,"Momentant metanflöde","Nm3 CH4/h",null,null,{"$f":"Beräkningar!E374","v":0}]
[null,"Momentan förlust","%",null,null,{"$f":"Beräkningar!E375","v":{"$error":"#DIV/0!"}}]
[null,"Beräknad kvantifiering av årliga utsläpp (Nm3 CH4/år)"]
[null,{"$f":"IF(Beräkningar!C376=\"p\",\"Utsläppet antas variera relativt produktionen i anläggningen\",IF(Beräkningar!C376=\"h\",\"Utsläppet antas vara konstant över årets alla drifttimmar\",\"Görs ej\"))","v":"Görs ej"}]
[]
[null,"Årligt utsläpp","Nm3 CH4/år",null,null,{"$f":"Beräkningar!E377","v":0}]
[null,"Årligt metanflöde","Nm3 CH4/år",null,null,{"$f":"Beräkningar!E378","v":0}]
[null,"Årlig förlust","%",null,null,{"$f":"Beräkningar!E379","v":{"$error":"#DIV/0!"}}]
[null,"Förslag på åtgärd"]
[null,"NNN"]

{"sheet":"Utsläpp h 4","index":21,"n_rows":25,"n_cols":6,"rows_kept":25,"cut":false,"hidden":false,"merged":[[8,1,8,7],[1,1,1,7],[2,1,2,7],[3,1,3,7],[4,1,5,7],[6,1,7,7],[24,1,25,7],[26,1,27,7],[9,1,9,7],[10,1,10,7],[11,1,11,7],[17,1,17,7],[18,1,18,7],[23,1,23,7]]}
[]
[null,"Identifikation av utsläppsobjekt"]
[null,{"$f":"Val!C25","v":0}]
[null,"Beskrivning av utsläppsobjekt"]
[null,"NNN"]
[]
[]
[]
[null,"Beskrivning av mätningens genomförande"]
[null,"NNN"]
[]
[null,"Momentant utsläpp och beräknad förlust (Nm3 CH4/h)"]
[]
[]
[null,"Momentant utsläpp","Nm3 CH4/h",{"$f":"Beräkningar!C385","v":0}]
[null,"Momentant metanflöde","Nm3 CH4/h",null,null,{"$f":"Beräkningar!E386","v":0}]
[null,"Momentan förlust","%",null,null,{"$f":"Beräkningar!E387","v":{"$error":"#DIV/0!"}}]
[null,"Beräknad kvantifiering av årliga utsläpp (Nm3 CH4/år)"]
[null,{"$f":"IF(Beräkningar!C388=\"p\",\"Utsläppet antas variera relativt produktionen i anläggningen\",IF(Beräkningar!C388=\"h\",\"Utsläppet antas vara konstant över årets alla drifttimmar\",\"Görs ej\"))","v":"Görs ej"}]
[]
[null,"Årligt utsläpp","Nm3 CH4/år",null,null,{"$f":"Beräkningar!E389","v":0}]
[null,"Årligt metanflöde","Nm3 CH4/år",null,null,{"$f":"Beräkningar!E390","v":0}]
[null,"Årlig förlust","%",null,null,{"$f":"Beräkningar!E391","v":{"$error":"#DIV/0!"}}]
[null,"Förslag på åtgärd"]
[null,"NNN"]

{"sheet":"Utsläpp h 5","index":22,"n_rows":25,"n_cols":6,"rows_kept":25,"cut":false,"hidden":false,"merged":[[8,1,8,7],[1,1,1,7],[2,1,2,7],[3,1,3,7],[4,1,5,7],[6,1,7,7],[24,1,25,7],[26,1,27,7],[9,1,9,7],[10,1,10,7],[11,1,11,7],[17,1,17,7],[18,1,18,7],[23,1,23,7]]}
[]
[null,"Identifikation av utsläppsobjekt"]
[null,{"$f":"Val!C26","v":0}]
[null,"Beskrivning av utsläppsobjekt"]
[null,"NNN"]
[]
[]
[]
[null,"Beskrivning av mätningens genomförande"]
[null,"NNN"]
[]
[null,"Momentant utsläpp och beräknad förlust (Nm3 CH4/h)"]
[]
[]
[null,"Momentant utsläpp","Nm3 CH4/h",{"$f":"Beräkningar!C397","v":0}]
[null,"Momentant metanflöde","Nm3 CH4/h",null,null,{"$f":"Beräkningar!E398","v":0}]
[null,"Momentan förlust","%",null,null,{"$f":"Beräkningar!E399","v":{"$error":"#DIV/0!"}}]
[null,"Beräknad kvantifiering av årliga utsläpp (Nm3 CH4/år)"]
[null,{"$f":"IF(Beräkningar!C400=\"p\",\"Utsläppet antas variera relativt produktionen i anläggningen\",IF(Beräkningar!C400=\"h\",\"Utsläppet antas vara konstant över årets alla drifttimmar\",\"Görs ej\"))","v":"Görs ej"}]
[]
[null,"Årligt utsläpp","Nm3 CH4/år",null,null,{"$f":"Beräkningar!E401","v":0}]
[null,"Årligt metanflöde","Nm3 CH4/år",null,null,{"$f":"Beräkningar!E402","v":0}]
[null,"Årlig förlust","%",null,null,{"$f":"Beräkningar!E403","v":{"$error":"#DIV/0!"}}]
[null,"Förslag på åtgärd"]
[null,"NNN"]

{"sheet":"Bilaga","index":23,"n_rows":32,"n_cols":3,"rows_kept":32,"cut":false,"hidden":false,"merged":[]}
[]
[null,"Årsutsläpp"]
[null,"Uppmätta utsläppsmängder gäller vid mätningens genomförande. Två olika principer används för att skala"]
[null,"upp de momentant uppmätta utsläppen till att gälla årliga utsläpp:"]
[]
[null,"Princip 1","Relativt produktionen i anläggningen"]
[]
[null,null,"Den momentana förlusten i procent beräknas relativt den aktuella produktionen"]
[null,null,"i anläggningen vid mätning. Den momentanta förlusten antas vara samma som"]
[null,null,"den årliga förlusten, i procent. För att beräkna årliga utsläppsmängder tas den"]
[null,null,"bestämda förlusten gånger den årliga produktionen."]
[]
[null,"Princip 2","Konstant över årets alla drifttimmar"]
[]
[null,null,"Det uppmätta utsläppet (Nm3/h) antas gälla under årets alla drifttimmar. "]
[null,null,"Utsläppet antas ej vara beroende av produktionen i anläggningen."]
[]
[null,"Tillämpad princip anges i respektive resultatsammanställning i rapporten."]
[]
[null,"Mätosäkerhet"]
[null,"Mätosäkerheterna varierar till stor grad mellan olika utsläppspunkter och anläggningar och är bland annat"]
[null,"beroende av raksträckor vid mätpunkterna, flödesprofilen, analysinstrumenten, kalibrergaser, interferenser"]
[null,"med andra ämnen etc. En stor osäkerhetskälla är också den tidsmässiga variationen i utsläpp i respektive"]
[null,"mätpunkt."]
[]
[null,"Hållbarhetskriterier (HBK)"]
[null,"Enligt gällande definitioner så omfattas inte hela biogasanläggningen av den systemgräns som gäller för"]
[null,"beräkning av metanutsläpp för redovisning till hållbarhetskriterierna (HBK). De utsläppspunkter som anses"]
[null,"ingå i HBK systemgräns noteras med \"Ja\" i kolumnen \"HBK\" i protokollet på sista sidan i denna rapport."]
[null,"Värdet på summa utsläpp och metanförlust för enbart dessa utsläppspunkter beräknas sist i denna kolumn."]
[]
[null,"Specifika kommentarer kring den aktuella mätningen"]

{"sheet":"EgMet Protokoll","index":24,"n_rows":38,"n_cols":4,"rows_kept":38,"cut":false,"hidden":false,"merged":[[38,2,38,3],[8,0,10,0],[37,2,37,3],[2,5,2,6],[38,6,38,8],[37,6,37,8],[6,5,6,6],[5,5,5,6],[4,5,4,6],[8,1,10,1],[32,1,32,2]]}
["Egenkontroll metanemissioner"]
[]
["Kvantifieringsprotokoll",null,"Anläggningsnamn:",{"$f":"'Sid 1'!C3","v":"Exempelanläggning"}]
["Produktionsanläggning",null,"Mätdatum:",{"$f":"'Sid 1'!C17","v":"2018-08-01"}]
["Samrötninganläggning",null,"Kontaktperson:",{"$f":"'Sid 1'!C6","v":"Namn Namnsson"}]
[null,null,"Telefon:",{"$f":"'Sid 1'!C7","v":"010 - 123 45 67"}]
[null,null,"E-post:",{"$f":"'Sid 1'!C8","v":"namn.namnsson@biogas.se"}]
[]
["1. Utsläppsobjekt","HBK","2. Kvantifiering av utsläpp","3. Planerad åtgärd"]
[null,null,"CH4 Nm3/år"]
[null,null,"Rågas"]
[{"$f":"Val!C7","v":"Fast installerade analysinstrument"},{"$f":"Val!E7","v":"Ja"},{"$f":"IF(Val!$C7<>\"\",Beräkningar!C29,\"\")","v":0}]
[{"$f":"Val!C8","v":0},{"$f":"Val!E8","v":0},{"$f":"IF(Val!$C8<>\"\",Beräkningar!E53,\"\")","v":""}]
[{"$f":"Val!C9","v":0},{"$f":"Val!E9","v":0},{"$f":"IF(Val!$C9<>\"\",Beräkningar!E77,\"\")","v":""}]
[{"$f":"Val!C10","v":0},{"$f":"Val!E10","v":0},{"$f":"IF(Val!$C10<>\"\",Beräkningar!E101,\"\")","v":""}]
[{"$f":"Val!C11","v":0},{"$f":"Val!E11","v":0},{"$f":"IF(Val!$C11<>\"\",Beräkningar!E125,\"\")","v":""}]
[{"$f":"Val!C12","v":0},{"$f":"Val!E12","v":0},{"$f":"IF(Val!$C12<>\"\",Beräkningar!E149,\"\")","v":""}]
[{"$f":"Val!C13","v":0},{"$f":"Val!E13","v":0},{"$f":"IF(Val!$C13<>\"\",Beräkningar!E173,\"\")","v":""}]
[{"$f":"Val!C14","v":0},{"$f":"Val!E14","v":0},{"$f":"IF(Val!$C14<>\"\",Beräkningar!E197,\"\")","v":""}]
[{"$f":"Val!C15","v":0},{"$f":"Val!E15","v":0},{"$f":"IF(Val!$C15<>\"\",Beräkningar!E221,\"\")","v":""}]
[{"$f":"Val!C16","v":0},{"$f":"Val!E16","v":0},{"$f":"IF(Val!$C16<>\"\",Beräkningar!E245,\"\")","v":""}]
[{"$f":"Val!C17","v":0},{"$f":"Val!E17","v":0},{"$f":"IF(Val!$C17<>\"\",Beräkningar!E269,\"\")","v":""}]
[{"$f":"Val!C18","v":0},{"$f":"Val!E18","v":0},{"$f":"IF(Val!$C18<>\"\",Beräkningar!E293,\"\")","v":""}]
[{"$f":"Val!C19","v":0},{"$f":"Val!E19","v":0},{"$f":"IF(Val!$C19<>\"\",Beräkningar!E317,\"\")","v":""}]
[{"$f":"Val!C20","v":0},{"$f":"Val!E20","v":0},{"$f":"IF(Val!$C20<>\"\",Beräkningar!E329,\"\")","v":""}]
[{"$f":"Val!C21","v":0},{"$f":"Val!E21","v":0},{"$f":"IF(Val!$C21<>\"\",Beräkningar!E341,\"\")","v":""}]
[{"$f":"Val!C22","v":0},{"$f":"Val!E22","v":0},{"$f":"IF(Val!$C22<>\"\",Beräkningar!E353,\"\")","v":""}]
[{"$f":"Val!C23","v":0},{"$f":"Val!E23","v":0},{"$f":"IF(Val!$C23<>\"\",Beräkningar!E365,\"\")","v":""}]
[{"$f":"Val!C24","v":0},{"$f":"Val!E24","v":0},{"$f":"IF(Val!$C24<>\"\",Beräkningar!E377,\"\")","v":""}]
[{"$f":"Val!C25","v":0},{"$f":"Val!E25","v":0},{"$f":"IF(Val!$C25<>\"\",Beräkningar!E389,\"\")","v":""}]
[{"$f":"Val!C26","v":0},{"$f":"Val!E26","v":0},{"$f":"IF(Val!$C26<>\"\",Beräkningar!E401,\"\")","v":""}]
["Summa utsläpp CH4 (Nm3/år)",{"$f":"Beräkningar!G17","v":0},{"$f":"SUM(C12:C31)","v":0}]
["Totalt metanflöde i anläggning (Nm3/år)",{"$f":"Beräkningar!E11","v":0}]
["Metanförlust (%)",{"$f":"Beräkningar!G18","v":{"$error":"#DIV/0!"}},{"$f":"(C32/B33)*100","v":{"$error":"#DIV/0!"}}]
["Mål metanförlust (%)"]
[]
["Härmed intygas att kvantifiering enligt föreskrivna riktlinjer i Frivilligt åtagande har ägt rum"]
["Datum",null,"Namnteckning"]